[Event "Early-Titled-Tuesday-Blitz-October-24-2023"]
[Site "Chess.com"]
[Date "2023.10.24"]
[Round "9"]
[White "I_am_Javi"]
[Black "Sanan_Sjugirov"]
[Result "0-1"]
[WhiteElo "2803"]
[BlackElo "2954"]
[TimeControl "180+1"]
[EndTime "9:42:02 PDT"]
[Termination "Sanan_Sjugirov won by checkmate"]

1. e4 {[%clk 0:03:00.9]} 1... c6 {[%clk 0:02:57]} 2. d4 {[%clk 0:03:00.8]} 2...
d5 {[%clk 0:02:57.6]} 3. e5 {[%clk 0:03:01.5]} 3... Bf5 {[%clk 0:02:56.4]} 4. c3
{[%clk 0:03:01.9]} 4... e6 {[%clk 0:02:53.9]} 5. Be2 {[%clk 0:03:02.3]} 5... Ne7
{[%clk 0:02:50.6]} 6. Be3 {[%clk 0:03:00.6]} 6... Bg6 {[%clk 0:02:40.1]} 7. Nf3
{[%clk 0:03:00.2]} 7... Nf5 {[%clk 0:02:33.8]} 8. O-O {[%clk 0:03:00.5]} 8... c5
{[%clk 0:02:26]} 9. Nbd2 {[%clk 0:02:58.3]} 9... Nc6 {[%clk 0:02:25.2]} 10. Nb3
{[%clk 0:02:25.1]} 10... c4 {[%clk 0:02:12.9]} 11. Nbd2 {[%clk 0:02:24.8]} 11...
Be7 {[%clk 0:02:08.4]} 12. Bf4 {[%clk 0:02:23.4]} 12... b5 {[%clk 0:02:06.3]}
13. g4 {[%clk 0:02:03.7]} 13... Nh4 {[%clk 0:02:04.2]} 14. Nxh4 {[%clk
0:02:04.2]} 14... Bxh4 {[%clk 0:02:04.6]} 15. Bg3 {[%clk 0:02:05.1]} 15... h5
{[%clk 0:01:27.8]} 16. f4 {[%clk 0:01:55.7]} 16... hxg4 {[%clk 0:01:25.8]} 17.
Bxg4 {[%clk 0:01:56.6]} 17... Bd3 {[%clk 0:01:21.4]} 18. Rf3 {[%clk 0:01:45.1]}
18... g6 {[%clk 0:01:15.6]} 19. b3 {[%clk 0:01:44.2]} 19... Kf8 {[%clk
0:01:04.6]} 20. bxc4 {[%clk 0:01:37.1]} 20... bxc4 {[%clk 0:01:04.4]} 21. Qa4
{[%clk 0:01:36.2]} 21... Ne7 {[%clk 0:01:01.4]} 22. Nf1 {[%clk 0:01:21.8]} 22...
Be2 {[%clk 0:00:59.5]} 23. Ne3 {[%clk 0:01:17.3]} 23... Bxf3 {[%clk 0:00:55.6]}
24. Bxf3 {[%clk 0:01:18.2]} 24... Rb8 {[%clk 0:00:50.7]} 25. Qa3 {[%clk
0:01:09.8]} 25... Kg7 {[%clk 0:00:48.8]} 26. Rf1 {[%clk 0:01:06.3]} 26... Nf5
{[%clk 0:00:45.3]} 27. Nxf5+ {[%clk 0:01:04.1]} 27... gxf5 {[%clk 0:00:46.2]}
28. Bg2 {[%clk 0:00:21.6]} 28... Bxg3 {[%clk 0:00:45.2]} 29. hxg3 {[%clk
0:00:22.5]} 29... Qb6 {[%clk 0:00:44.5]} 30. Qe7 {[%clk 0:00:23.2]} 30... Qd8
{[%clk 0:00:44.2]} 31. Qa3 {[%clk 0:00:23.3]} 31... Rb7 {[%clk 0:00:43.2]} 32.
g4 {[%clk 0:00:11.2]} 32... Qh4 {[%clk 0:00:38.7]} 33. gxf5 {[%clk 0:00:11.6]}
33... Qh2+ {[%clk 0:00:38]} 34. Kf2 {[%clk 0:00:11.6]} 34... Qxf4+ {[%clk
0:00:38.9]} 35. Kg1 {[%clk 0:00:11.5]} 35... Qe3+ {[%clk 0:00:38.6]} 36. Rf2
{[%clk 0:00:11.5]} 36... Rb1+ {[%clk 0:00:38.7]} 37. Bf1 {[%clk 0:00:12.2]}
37... Rxf1+ {[%clk 0:00:36.6]} 38. Kxf1 {[%clk 0:00:12.2]} 38... Rh1+ {[%clk
0:00:37.2]} 39. Kg2 {[%clk 0:00:12.6]} 39... Qh3# {[%clk 0:00:38]} 0-1

[Event "Early-Titled-Tuesday-Blitz-October-24-2023"]
[Site "Chess.com"]
[Date "2023.10.24"]
[Round "9"]
[White "sergeikim"]
[Black "Rodalquilar"]
[Result "1-0"]
[WhiteElo "2612"]
[BlackElo "2736"]
[TimeControl "180+1"]
[EndTime "9:42:02 PDT"]
[Termination "sergeikim won by checkmate"]

1. d4 {[%clk 0:03:00.9]} 1... d5 {[%clk 0:02:07.4]} 2. c4 {[%clk 0:03:00.6]}
2... e6 {[%clk 0:02:07.8]} 3. Nc3 {[%clk 0:03:00.1]} 3... a6 {[%clk 0:02:07.2]}
4. e3 {[%clk 0:02:59.6]} 4... Nf6 {[%clk 0:02:06.3]} 5. Nf3 {[%clk 0:02:59.7]}
5... b6 {[%clk 0:02:06.1]} 6. cxd5 {[%clk 0:02:58.6]} 6... exd5 {[%clk 0:02:07]}
7. Bd3 {[%clk 0:02:56.8]} 7... Bb7 {[%clk 0:02:04.6]} 8. O-O {[%clk 0:02:51.4]}
8... Bd6 {[%clk 0:02:04.7]} 9. Ne5 {[%clk 0:02:51]} 9... O-O {[%clk 0:02:03.3]}
10. f4 {[%clk 0:02:48.9]} 10... c5 {[%clk 0:02:03.7]} 11. Qf3 {[%clk 0:02:45.1]}
11... Nc6 {[%clk 0:02:03.1]} 12. Qh3 {[%clk 0:02:09.7]} 12... cxd4 {[%clk
0:01:50.7]} 13. Nxd5 {[%clk 0:02:06.8]} 13... h6 {[%clk 0:01:32.8]} 14. Nxf6+
{[%clk 0:01:59.6]} 14... Qxf6 {[%clk 0:01:33]} 15. Nd7 {[%clk 0:01:58.2]} 15...
Qe7 {[%clk 0:01:32.9]} 16. Nxf8 {[%clk 0:01:57.2]} 16... Rxf8 {[%clk 0:01:27.2]}
17. e4 {[%clk 0:01:50]} 17... Nb4 {[%clk 0:01:27.3]} 18. e5 {[%clk 0:01:48.8]}
18... Bc5 {[%clk 0:01:27.6]} 19. Bd2 {[%clk 0:01:45.4]} 19... Nxd3 {[%clk
0:01:25.2]} 20. Qxd3 {[%clk 0:01:45.3]} 20... a5 {[%clk 0:01:18.4]} 21. Rae1
{[%clk 0:01:41.6]} 21... Qe6 {[%clk 0:01:15.5]} 22. f5 {[%clk 0:01:14.7]} 22...
Qd5 {[%clk 0:01:15.7]} 23. Qg3 {[%clk 0:01:13.8]} 23... Kh7 {[%clk 0:01:13.8]}
24. e6 {[%clk 0:00:50.6]} 24... d3+ {[%clk 0:01:13.9]} 25. Kh1 {[%clk
0:00:49.7]} 25... Bd6 {[%clk 0:01:14.3]} 26. Qg4 {[%clk 0:00:40.8]} 26... Be5
{[%clk 0:00:20.8]} 27. Rxe5 {[%clk 0:00:30.5]} 27... Qxe5 {[%clk 0:00:16.1]} 28.
Bc3 {[%clk 0:00:31]} 28... Bxg2+ {[%clk 0:00:02.9]} 29. Qxg2 {[%clk 0:00:30.6]}
29... Qe2 {[%clk 0:00:01.6]} 30. Qxg7# {[%clk 0:00:29.7]} 1-0

[Event "Early-Titled-Tuesday-Blitz-October-24-2023"]
[Site "Chess.com"]
[Date "2023.10.24"]
[Round "9"]
[White "GroovyKettle"]
[Black "vugarrasulov"]
[Result "1-0"]
[WhiteElo "3014"]
[BlackElo "3007"]
[TimeControl "180+1"]
[EndTime "9:42:05 PDT"]
[Termination "GroovyKettle won by resignation"]

1. e4 {[%clk 0:03:00.9]} 1... c5 {[%clk 0:02:59.1]} 2. Nf3 {[%clk 0:03:00.7]}
2... d6 {[%clk 0:02:59.1]} 3. d4 {[%clk 0:03:00.9]} 3... cxd4 {[%clk 0:02:58.1]}
4. Nxd4 {[%clk 0:03:01.8]} 4... Nf6 {[%clk 0:02:55.4]} 5. Nc3 {[%clk 0:03:01.8]}
5... a6 {[%clk 0:02:51.7]} 6. Be3 {[%clk 0:03:01.7]} 6... e5 {[%clk 0:02:51.4]}
7. Nf3 {[%clk 0:03:01.7]} 7... h6 {[%clk 0:02:50.7]} 8. Bc4 {[%clk 0:03:01.1]}
8... Be7 {[%clk 0:02:49.5]} 9. O-O {[%clk 0:03:00.9]} 9... O-O {[%clk
0:02:49.6]} 10. Qe2 {[%clk 0:02:58.1]} 10... Be6 {[%clk 0:02:47.7]} 11. Rfd1
{[%clk 0:02:56.9]} 11... Qc7 {[%clk 0:02:46]} 12. Bb3 {[%clk 0:02:54.7]} 12...
Nc6 {[%clk 0:02:44.5]} 13. Nh4 {[%clk 0:02:49]} 13... Rad8 {[%clk 0:02:28.7]}
14. Nf5 {[%clk 0:02:45.6]} 14... Bxf5 {[%clk 0:02:25.6]} 15. exf5 {[%clk
0:02:46.5]} 15... Rfe8 {[%clk 0:02:11.1]} 16. a3 {[%clk 0:02:13.2]} 16... b5
{[%clk 0:02:00.9]} 17. Nd5 {[%clk 0:02:12.2]} 17... Nxd5 {[%clk 0:02:00.7]} 18.
Bxd5 {[%clk 0:02:13.1]} 18... Bf6 {[%clk 0:02:00.9]} 19. c3 {[%clk 0:02:00.8]}
19... Ne7 {[%clk 0:02:00]} 20. Qg4 {[%clk 0:01:59]} 20... Nxd5 {[%clk
0:01:55.3]} 21. Rxd5 {[%clk 0:01:59.9]} 21... Kh7 {[%clk 0:01:52]} 22. Rad1
{[%clk 0:01:59.1]} 22... Rd7 {[%clk 0:01:45.6]} 23. g3 {[%clk 0:01:59.2]} 23...
Qc6 {[%clk 0:01:41.6]} 24. h4 {[%clk 0:01:56.3]} 24... Rc8 {[%clk 0:01:28.4]}
25. Qh5 {[%clk 0:01:56]} 25... Kg8 {[%clk 0:01:28.1]} 26. g4 {[%clk 0:01:53.6]}
26... Be7 {[%clk 0:01:18.3]} 27. g5 {[%clk 0:01:51.1]} 27... hxg5 {[%clk
0:01:19.2]} 28. hxg5 {[%clk 0:01:51.7]} 28... Qc4 {[%clk 0:01:19.1]} 29. g6
{[%clk 0:01:32.3]} 29... Qh4 {[%clk 0:01:14.4]} 30. gxf7+ {[%clk 0:01:30.6]}
30... Kf8 {[%clk 0:01:14.5]} 31. Qxh4 {[%clk 0:01:31.3]} 31... Bxh4 {[%clk
0:01:15.3]} 32. Rxd6 {[%clk 0:01:32.2]} 32... Rxd6 {[%clk 0:01:15.7]} 33. Rxd6
{[%clk 0:01:33.1]} 33... Ra8 {[%clk 0:01:12.4]} 34. Rd7 {[%clk 0:01:32.1]} 34...
Be7 {[%clk 0:01:11]} 35. Kg2 {[%clk 0:01:29]} 35... Rc8 {[%clk 0:01:04.6]} 36.
Ra7 {[%clk 0:01:20.8]} 36... Rc6 {[%clk 0:01:02.1]} 37. Kf3 {[%clk 0:01:18.4]}
37... Bc5 {[%clk 0:00:41.8]} 38. Bxc5+ {[%clk 0:01:14.2]} 38... Rxc5 {[%clk
0:00:42.7]} 39. Rxa6 {[%clk 0:01:09.1]} 39... Kxf7 {[%clk 0:00:42.4]} 40. Rb6
{[%clk 0:01:09.2]} 40... Rc4 {[%clk 0:00:40.6]} 41. Rxb5 {[%clk 0:01:08.8]}
41... Rf4+ {[%clk 0:00:39.6]} 42. Ke3 {[%clk 0:01:09.2]} 42... Kf6 {[%clk
0:00:40.3]} 43. b4 {[%clk 0:01:04.2]} 43... Rc4 {[%clk 0:00:39.1]} 44. Kd3
{[%clk 0:01:04.1]} 44... Rf4 {[%clk 0:00:38.8]} 45. Ke3 {[%clk 0:01:01.2]} 45...
Kxf5 {[%clk 0:00:37.3]} 46. a4 {[%clk 0:01:00.7]} 46... Re4+ {[%clk 0:00:37.7]}
47. Kd3 {[%clk 0:00:57.3]} 47... Rf4 {[%clk 0:00:38.6]} 48. a5 {[%clk
0:00:56.4]} 48... Rf3+ {[%clk 0:00:34.3]} 49. Kc4 {[%clk 0:00:43.5]} 49... Rxf2
{[%clk 0:00:32.9]} 50. a6 {[%clk 0:00:43.7]} 1-0

[Event "Early-Titled-Tuesday-Blitz-October-24-2023"]
[Site "Chess.com"]
[Date "2023.10.24"]
[Round "9"]
[White "meoluoi91"]
[Black "Noki102"]
[Result "1-0"]
[WhiteElo "2598"]
[BlackElo "2433"]
[TimeControl "180+1"]
[EndTime "9:42:05 PDT"]
[Termination "meoluoi91 won by resignation"]

1. d4 {[%clk 0:03:00.9]} 1... d5 {[%clk 0:02:59.7]} 2. c4 {[%clk 0:03:00.9]}
2... c6 {[%clk 0:02:58]} 3. Nc3 {[%clk 0:03:01.2]} 3... Nf6 {[%clk 0:02:57.3]}
4. cxd5 {[%clk 0:03:00.2]} 4... cxd5 {[%clk 0:02:57]} 5. Bf4 {[%clk 0:03:00.4]}
5... a6 {[%clk 0:02:53.7]} 6. e3 {[%clk 0:03:00.4]} 6... Nc6 {[%clk 0:02:53.8]}
7. Bd3 {[%clk 0:03:00.2]} 7... e6 {[%clk 0:02:48.9]} 8. Nf3 {[%clk 0:02:59.2]}
8... Bd6 {[%clk 0:02:49.4]} 9. Bg5 {[%clk 0:02:59.3]} 9... Qb6 {[%clk
0:02:39.6]} 10. a3 {[%clk 0:02:50.7]} 10... O-O {[%clk 0:02:21.9]} 11. O-O
{[%clk 0:02:45.9]} 11... Na5 {[%clk 0:02:18.1]} 12. Bxf6 {[%clk 0:02:25]} 12...
gxf6 {[%clk 0:02:16.7]} 13. b4 {[%clk 0:02:24.2]} 13... Nc4 {[%clk 0:02:12.6]}
14. e4 {[%clk 0:02:24]} 14... Nb2 {[%clk 0:02:09.6]} 15. Qc2 {[%clk 0:02:22.1]}
15... Nxd3 {[%clk 0:02:10.5]} 16. Qxd3 {[%clk 0:02:22.8]} 16... dxe4 {[%clk
0:02:06]} 17. Nxe4 {[%clk 0:02:22.6]} 17... Be7 {[%clk 0:02:06.1]} 18. Rfd1
{[%clk 0:02:10.6]} 18... Bd7 {[%clk 0:02:04]} 19. d5 {[%clk 0:02:09.8]} 19...
Bb5 {[%clk 0:02:03.2]} 20. Qb3 {[%clk 0:02:03.4]} 20... Rac8 {[%clk 0:01:30.1]}
21. d6 {[%clk 0:01:59.9]} 21... Bd8 {[%clk 0:01:28.6]} 22. Nc5 {[%clk 0:01:56]}
22... Be2 {[%clk 0:01:19.7]} 23. Nd7 {[%clk 0:01:27.9]} 23... Bxd1 {[%clk
0:01:05.4]} 24. Rxd1 {[%clk 0:01:28.8]} 24... Qc6 {[%clk 0:01:02.7]} 25. Nxf8
{[%clk 0:01:28.8]} 25... Kxf8 {[%clk 0:01:03.6]} 26. Qe3 {[%clk 0:01:27.8]}
26... Qc2 {[%clk 0:00:56.2]} 27. Re1 {[%clk 0:01:16.2]} 27... Rc3 {[%clk
0:00:38]} 28. Qh6+ {[%clk 0:01:13.6]} 28... Kg8 {[%clk 0:00:36.2]} 29. h3 {[%clk
0:01:08.1]} 29... Qg6 {[%clk 0:00:28.1]} 30. Qf4 {[%clk 0:00:59.1]} 30... Kg7
{[%clk 0:00:06.8]} 31. Rd1 {[%clk 0:00:53.3]} 31... Rxa3 {[%clk 0:00:04.9]} 32.
d7 {[%clk 0:00:50.8]} 32... Qc2 {[%clk 0:00:03.6]} 33. Rc1 {[%clk 0:00:46]}
33... Qb2 {[%clk 0:00:03.2]} 34. Rc8 {[%clk 0:00:42.4]} 34... Ra1+ {[%clk
0:00:03.1]} 35. Kh2 {[%clk 0:00:42.8]} 1-0

[Event "Early-Titled-Tuesday-Blitz-October-24-2023"]
[Site "Chess.com"]
[Date "2023.10.24"]
[Round "9"]
[White "Vesper2018"]
[Black "ozates"]
[Result "1-0"]
[WhiteElo "2602"]
[BlackElo "2718"]
[TimeControl "180+1"]
[EndTime "9:42:06 PDT"]
[Termination "Vesper2018 won by resignation"]

1. e4 {[%clk 0:02:54.2]} 1... c5 {[%clk 0:02:57.7]} 2. Nc3 {[%clk 0:02:53.9]}
2... Nc6 {[%clk 0:02:52.3]} 3. Bb5 {[%clk 0:02:53.3]} 3... Nd4 {[%clk
0:02:52.3]} 4. Bc4 {[%clk 0:02:50.9]} 4... a6 {[%clk 0:02:52.6]} 5. a4 {[%clk
0:02:49.5]} 5... g6 {[%clk 0:02:51.6]} 6. Nf3 {[%clk 0:02:48.4]} 6... Bg7 {[%clk
0:02:45.2]} 7. Nxd4 {[%clk 0:02:46]} 7... cxd4 {[%clk 0:02:46.1]} 8. Qf3 {[%clk
0:02:46]} 8... e6 {[%clk 0:02:38.1]} 9. Ne2 {[%clk 0:02:43.3]} 9... Ne7 {[%clk
0:02:37.2]} 10. d3 {[%clk 0:02:41.9]} 10... O-O {[%clk 0:02:35.9]} 11. h4 {[%clk
0:02:41.1]} 11... Nc6 {[%clk 0:02:30.1]} 12. h5 {[%clk 0:02:37.2]} 12... Ne5
{[%clk 0:02:19.9]} 13. Qh3 {[%clk 0:02:36]} 13... d5 {[%clk 0:02:19.8]} 14. hxg6
{[%clk 0:02:28.9]} 14... fxg6 {[%clk 0:02:20.4]} 15. Qxh7+ {[%clk 0:02:19.5]}
15... Kf7 {[%clk 0:02:20.5]} 16. Bh6 {[%clk 0:02:20.1]} 16... Rg8 {[%clk
0:02:02.1]} 17. Bb3 {[%clk 0:02:10]} 17... dxe4 {[%clk 0:01:36.3]} 18. dxe4
{[%clk 0:02:08.6]} 18... d3 {[%clk 0:01:34.2]} 19. O-O-O {[%clk 0:01:56.9]}
19... Qf6 {[%clk 0:01:27.1]} 20. cxd3 {[%clk 0:01:31.9]} 20... Bd7 {[%clk
0:01:19.3]} 21. Bxg7 {[%clk 0:01:28.9]} 21... Rxg7 {[%clk 0:01:19.3]} 22. Qh4
{[%clk 0:01:23.8]} 22... g5 {[%clk 0:01:15.3]} 23. Qh5+ {[%clk 0:01:23.6]} 23...
Ng6 {[%clk 0:01:13]} 24. Nc3 {[%clk 0:01:07.3]} 24... Rc8 {[%clk 0:01:07.6]} 25.
d4 {[%clk 0:01:04.1]} 25... Ke7 {[%clk 0:01:01.7]} 26. e5 {[%clk 0:00:46.8]}
26... Qf4+ {[%clk 0:00:59.6]} 27. Kb1 {[%clk 0:00:46.3]} 27... b5 {[%clk
0:00:34.9]} 28. g3 {[%clk 0:00:43.2]} 28... Qf7 {[%clk 0:00:11.3]} 29. Qxg5+
{[%clk 0:00:42.5]} 29... Ke8 {[%clk 0:00:11.8]} 30. d5 {[%clk 0:00:40.6]} 30...
Nf8 {[%clk 0:00:11]} 31. Qf6 {[%clk 0:00:39.7]} 31... b4 {[%clk 0:00:11]} 32.
Ne4 {[%clk 0:00:37]} 32... Qxf6 {[%clk 0:00:08]} 33. exf6 {[%clk 0:00:36.9]}
33... Rg4 {[%clk 0:00:06.8]} 34. Nd6+ {[%clk 0:00:36.8]} 34... Kd8 {[%clk
0:00:07.2]} 35. Rh8 {[%clk 0:00:33.8]} 35... Kc7 {[%clk 0:00:07]} 36. Nxc8
{[%clk 0:00:33.4]} 1-0

[Event "Early-Titled-Tuesday-Blitz-October-24-2023"]
[Site "Chess.com"]
[Date "2023.10.24"]
[Round "9"]
[White "ferrufino64"]
[Black "carloseduar100"]
[Result "1-0"]
[WhiteElo "2204"]
[BlackElo "2292"]
[TimeControl "180+1"]
[EndTime "9:42:07 PDT"]
[Termination "ferrufino64 won on time"]

1. e4 {[%clk 0:03:00.9]} 1... e6 {[%clk 0:02:59.7]} 2. d4 {[%clk 0:02:58.2]}
2... d5 {[%clk 0:02:59.4]} 3. Nc3 {[%clk 0:02:58.5]} 3... Nf6 {[%clk 0:02:58.9]}
4. e5 {[%clk 0:02:58.4]} 4... Nfd7 {[%clk 0:02:58.9]} 5. f4 {[%clk 0:02:59.1]}
5... c5 {[%clk 0:02:59.1]} 6. Nf3 {[%clk 0:02:59.7]} 6... Nc6 {[%clk 0:02:59.4]}
7. Be3 {[%clk 0:03:00.1]} 7... Qb6 {[%clk 0:02:58.8]} 8. Na4 {[%clk 0:03:00.2]}
8... Qc7 {[%clk 0:02:57.5]} 9. Nxc5 {[%clk 0:02:53.5]} 9... Nxd4 {[%clk
0:02:57.5]} 10. Nxd4 {[%clk 0:02:52.4]} 10... Bxc5 {[%clk 0:02:54.4]} 11. Qd2
{[%clk 0:02:51.8]} 11... O-O {[%clk 0:02:53.6]} 12. O-O-O {[%clk 0:02:44.3]}
12... a6 {[%clk 0:02:51.9]} 13. g4 {[%clk 0:02:39.1]} 13... b5 {[%clk 0:02:52]}
14. Bd3 {[%clk 0:02:36.6]} 14... Nb6 {[%clk 0:02:48.4]} 15. Rhf1 {[%clk
0:02:24.6]} 15... Bd7 {[%clk 0:02:47.3]} 16. Rde1 {[%clk 0:02:15.4]} 16... Nc4
{[%clk 0:02:47.4]} 17. Bxc4 {[%clk 0:02:15.4]} 17... bxc4 {[%clk 0:02:47.6]} 18.
c3 {[%clk 0:02:09.2]} 18... Rab8 {[%clk 0:02:47.8]} 19. f5 {[%clk 0:02:08.2]}
19... exf5 {[%clk 0:02:44.8]} 20. Nxf5 {[%clk 0:02:02.7]} 20... Bxe3 {[%clk
0:01:51.1]} 21. Rxe3 {[%clk 0:01:54.3]} 21... Bxf5 {[%clk 0:01:50.9]} 22. gxf5
{[%clk 0:01:54.5]} 22... f6 {[%clk 0:01:43.4]} 23. Qxd5+ {[%clk 0:01:52.3]}
23... Kh8 {[%clk 0:01:43.5]} 24. exf6 {[%clk 0:01:37.3]} 24... Rxf6 {[%clk
0:01:40.9]} 25. Rf2 {[%clk 0:01:37]} 25... h6 {[%clk 0:01:30.9]} 26. Qe5 {[%clk
0:01:31.8]} 26... Qb6 {[%clk 0:01:25.3]} 27. Rd2 {[%clk 0:01:23.8]} 27... Rbf8
{[%clk 0:01:24.7]} 28. Rf3 {[%clk 0:01:19.6]} 28... Qg1+ {[%clk 0:01:22.9]} 29.
Kc2 {[%clk 0:01:19.8]} 29... Qg4 {[%clk 0:01:17.6]} 30. Rdf2 {[%clk 0:01:18.5]}
30... Qh5 {[%clk 0:01:08.7]} 31. Qc5 {[%clk 0:01:15.7]} 31... Qf7 {[%clk
0:00:51.1]} 32. Rf4 {[%clk 0:01:08.9]} 32... Kh7 {[%clk 0:00:44.7]} 33. a4
{[%clk 0:01:06.4]} 33... Kh8 {[%clk 0:00:34.4]} 34. a5 {[%clk 0:01:06.2]} 34...
Qd7 {[%clk 0:00:32.8]} 35. Qxc4 {[%clk 0:00:58.8]} 35... Rxf5 {[%clk 0:00:32.3]}
36. Rxf5 {[%clk 0:00:55.3]} 36... Rxf5 {[%clk 0:00:32.4]} 37. Rd2 {[%clk
0:00:54.8]} 37... Qc7 {[%clk 0:00:20.6]} 38. Qxc7 {[%clk 0:00:53.5]} 1-0

[Event "Early-Titled-Tuesday-Blitz-October-24-2023"]
[Site "Chess.com"]
[Date "2023.10.24"]
[Round "9"]
[White "kidagent"]
[Black "DonCiao"]
[Result "1-0"]
[WhiteElo "2276"]
[BlackElo "2131"]
[TimeControl "180+1"]
[EndTime "9:42:07 PDT"]
[Termination "kidagent won on time"]

1. c4 {[%clk 0:03:00.9]} 1... Nf6 {[%clk 0:02:57.8]} 2. g3 {[%clk 0:02:59.2]}
2... e5 {[%clk 0:02:53.5]} 3. Bg2 {[%clk 0:02:59.4]} 3... Nc6 {[%clk 0:02:52.1]}
4. Nc3 {[%clk 0:02:59.2]} 4... Bc5 {[%clk 0:02:49.3]} 5. Nf3 {[%clk 0:02:52.3]}
5... d6 {[%clk 0:02:46.8]} 6. d3 {[%clk 0:02:51.3]} 6... O-O {[%clk 0:02:42.9]}
7. O-O {[%clk 0:02:50]} 7... h6 {[%clk 0:02:42.3]} 8. a4 {[%clk 0:02:49]} 8...
a6 {[%clk 0:02:30.9]} 9. b3 {[%clk 0:02:47.4]} 9... Nd4 {[%clk 0:02:16.1]} 10.
Bb2 {[%clk 0:02:45.6]} 10... Bg4 {[%clk 0:02:11.9]} 11. e3 {[%clk 0:02:39.3]}
11... Nxf3+ {[%clk 0:02:09.1]} 12. Bxf3 {[%clk 0:02:39.3]} 12... Bxf3 {[%clk
0:02:09.3]} 13. Qxf3 {[%clk 0:02:39.8]} 13... c6 {[%clk 0:02:06.1]} 14. Rad1
{[%clk 0:02:37.8]} 14... Re8 {[%clk 0:01:47.4]} 15. d4 {[%clk 0:02:36.2]} 15...
e4 {[%clk 0:01:42.2]} 16. Nxe4 {[%clk 0:02:29.4]} 16... Nxe4 {[%clk 0:01:40.9]}
17. dxc5 {[%clk 0:02:28.8]} 17... Nxc5 {[%clk 0:01:40.7]} 18. Qg4 {[%clk
0:02:19.9]} 18... f6 {[%clk 0:01:36.9]} 19. Ba3 {[%clk 0:02:07.5]} 19... b6
{[%clk 0:00:47]} 20. a5 {[%clk 0:02:03]} 20... Re4 {[%clk 0:00:36.2]} 21. Qf5
{[%clk 0:01:52.1]} 21... Qc8 {[%clk 0:00:24]} 22. Qxc8+ {[%clk 0:01:49.3]} 22...
Rxc8 {[%clk 0:00:22.9]} 23. Bxc5 {[%clk 0:01:46.6]} 23... dxc5 {[%clk
0:00:19.8]} 24. axb6 {[%clk 0:01:45.8]} 24... Rb8 {[%clk 0:00:19.9]} 25. Rd7
{[%clk 0:01:37.4]} 25... Rxb6 {[%clk 0:00:19.8]} 26. Rfd1 {[%clk 0:01:36.8]}
26... Rxb3 {[%clk 0:00:18.4]} 27. Ra7 {[%clk 0:01:36.7]} 27... Rxc4 {[%clk
0:00:18.2]} 28. Rdd7 {[%clk 0:01:34.5]} 28... Rg4 {[%clk 0:00:15.1]} 29. Rxa6
{[%clk 0:01:30.9]} 29... c4 {[%clk 0:00:14.4]} 30. Rxc6 {[%clk 0:01:30.9]} 30...
c3 {[%clk 0:00:14.3]} 31. Rdc7 {[%clk 0:01:30.3]} 31... Rb1+ {[%clk 0:00:07.5]}
32. Kg2 {[%clk 0:01:29.4]} 32... Rb3 {[%clk 0:00:04.5]} 33. Rxc3 {[%clk
0:01:28.7]} 33... Rxc3 {[%clk 0:00:04.3]} 34. Rxc3 {[%clk 0:01:29.6]} 34... Re4
{[%clk 0:00:04.3]} 35. f4 {[%clk 0:01:26.4]} 35... Ra4 {[%clk 0:00:03.7]} 36.
Kf3 {[%clk 0:01:26.7]} 36... Kh7 {[%clk 0:00:03.7]} 37. g4 {[%clk 0:01:25.5]}
37... Kg6 {[%clk 0:00:03.8]} 38. Rc5 {[%clk 0:01:22.9]} 38... Kf7 {[%clk
0:00:03.2]} 39. h4 {[%clk 0:01:23.3]} 39... Ra3 {[%clk 0:00:01.2]} 40. Rc7+
{[%clk 0:01:15.5]} 40... Kg8 {[%clk 0:00:01.9]} 41. h5 {[%clk 0:01:07]} 41...
Kh7 {[%clk 0:00:02]} 42. Re7 {[%clk 0:01:03.9]} 42... Ra4 {[%clk 0:00:01.9]} 43.
Kg3 {[%clk 0:01:01.2]} 43... Ra3 {[%clk 0:00:01.5]} 44. Kh4 {[%clk 0:01:01.9]}
44... Ra4 {[%clk 0:00:01.4]} 45. e4 {[%clk 0:00:56.7]} 1-0

[Event "Early-Titled-Tuesday-Blitz-October-24-2023"]
[Site "Chess.com"]
[Date "2023.10.24"]
[Round "9"]
[White "Zhbugnoimt"]
[Black "Chernov_Mikhail"]
[Result "1-0"]
[WhiteElo "2566"]
[BlackElo "2419"]
[TimeControl "180+1"]
[EndTime "9:42:11 PDT"]
[Termination "Zhbugnoimt won on time"]

1. e4 {[%clk 0:03:00.9]} 1... c5 {[%clk 0:02:57.1]} 2. Nf3 {[%clk 0:03:01]} 2...
Nc6 {[%clk 0:02:57]} 3. Bb5 {[%clk 0:03:00.6]} 3... g6 {[%clk 0:02:57]} 4. O-O
{[%clk 0:03:00.1]} 4... Bg7 {[%clk 0:02:57.1]} 5. c3 {[%clk 0:03:00.2]} 5... e5
{[%clk 0:02:57.5]} 6. Re1 {[%clk 0:02:49.6]} 6... Nge7 {[%clk 0:02:56.3]} 7. d3
{[%clk 0:02:35.5]} 7... O-O {[%clk 0:02:55.4]} 8. Be3 {[%clk 0:02:36.1]} 8... d6
{[%clk 0:02:55.2]} 9. d4 {[%clk 0:02:36.2]} 9... exd4 {[%clk 0:02:55.3]} 10.
cxd4 {[%clk 0:02:35.5]} 10... Bg4 {[%clk 0:02:55.9]} 11. dxc5 {[%clk 0:02:29.7]}
11... Bxb2 {[%clk 0:02:55.5]} 12. Nbd2 {[%clk 0:02:24.3]} 12... Bxa1 {[%clk
0:02:53.7]} 13. Qxa1 {[%clk 0:02:25.2]} 13... dxc5 {[%clk 0:02:54.3]} 14. Bxc5
{[%clk 0:02:06.5]} 14... Qa5 {[%clk 0:02:10.8]} 15. a4 {[%clk 0:01:47.9]} 15...
Rfd8 {[%clk 0:02:05.9]} 16. Be3 {[%clk 0:01:33.5]} 16... Bxf3 {[%clk 0:01:27.5]}
17. Nxf3 {[%clk 0:01:34.4]} 17... Qb4 {[%clk 0:01:23.5]} 18. Rb1 {[%clk
0:00:36.6]} 18... Qxe4 {[%clk 0:01:17.4]} 19. Bh6 {[%clk 0:00:35.9]} 19... Nd4
{[%clk 0:01:13.9]} 20. Re1 {[%clk 0:00:35.8]} 20... Qg4 {[%clk 0:00:19.3]} 21.
Nxd4 {[%clk 0:00:34.4]} 21... Rxd4 {[%clk 0:00:14.3]} 22. h3 {[%clk 0:00:34.5]}
22... Qh4 {[%clk 0:00:09.7]} 23. Rxe7 {[%clk 0:00:29.5]} 23... Qxe7 {[%clk
0:00:05.2]} 24. Qxd4 {[%clk 0:00:28.8]} 24... f6 {[%clk 0:00:06.1]} 25. g4
{[%clk 0:00:20.5]} 25... Rd8 {[%clk 0:00:05.2]} 26. Qc3 {[%clk 0:00:15.6]} 26...
a6 {[%clk 0:00:04]} 27. Bc4+ {[%clk 0:00:15]} 27... Kh8 {[%clk 0:00:04.5]} 28.
g5 {[%clk 0:00:15.6]} 1-0